Workbook

Sheet DFT
A1: SU_3.0 | P1: Author: Bo Svensmark, svensmark@plen.ku.dk, Analytical Chemistry, ECP, PLEN, University of Copenhagen, 2022
M19: This sheet is not protected so do only change WHITE cells
A21: z = Ni | B21: f(x) | C21: F(z) Real | D21: F(z) Imag | E21: F(z) | F21: Filter | G21: F(z) ReF | H21: F(z)ImF | I21: F(z) filt | J21: f(x) filt | M21: This sheet can be used to attenuate or amplify cyclic variations
A22: 0 | B22: 9.602527731 | C22: 1415.917466 | D22: 0 | E22: =IF(C22="","",SQRT(C22^2+D22^2)) -> 1415.917466 | G22: =IF($F22="",C22,$F22*C22) -> 1415.917466 | H22: =IF($F22="",D22,$F22*D22) -> 0 | I22: =IF(G22="","",SQRT(G22^2+H22^2)) -> 1415.917466 | J22: 8.645555458 | K22: N | M22: The 'frequency scale (z)' is number of increments Ni,i.e. cycles per lot length
A23: 1 | B23: 9.892067879 | C23: -159.2625596 | D23: -43.32346099 | E23: =IF(C23="","",SQRT(C23^2+D23^2)) -> 165.0499475 | G23: =IF($F23="",C23,$F23*C23) -> -159.2625596 | H23: -43.32346099 | I23: =IF(G23="","",SQRT(G23^2+H23^2)) -> 165.0499475 | J23: 9.042247053 | K23: 128 | M23: z = 0 is the mean
A24: 2 | B24: 7.689142471 | C24: 97.24179489 | D24: 68.30206804 | E24: 118.8323995 | G24: 97.24179489 | H24: 68.30206804 | I24: 118.8323995 | J24: 7.075850609
A25: 3 | B25: 9.293271682 | C25: -81.49551749 | D25: -84.04017223 | E25: 117.0652379 | G25: -81.49551749 | H25: -84.04017223 | I25: 117.0652379 | J25: 9.00987691 | M25: Only input in the white cells, column B and F
A26: 4 | B26: 10.62824927 | C26: 32.66950858 | D26: 79.24152714 | E26: 85.71182191 | G26: 32.66950858 | H26: 79.24152714 | I26: 85.71182191 | J26: 10.71789587
A27: 5 | B27: 8.549518998 | C27: -11.30882044 | D27: -58.51011388 | E27: 59.59297648 | G27: -11.30882044 | H27: -58.51011388 | I27: 59.59297648 | J27: 8.998559095 | M27: 1) Input data in cell B22 and down
A28: 6 | B28: 10.38383942 | C28: -6.291157862 | D28: 51.78770417 | E28: 52.16842887 | G28: -6.291157862 | H28: 51.78770417 | I28: 52.16842887 | J28: 11.12391073 | N28: Remember to delete old data in column B
A29: 7 | B29: 9.855861906 | C29: 24.69095672 | D29: -21.68709888 | E29: 32.86295181 | G29: 24.69095672 | H29: -21.68709888 | I29: 32.86295181 | J29: 10.77429527
A30: 8 | B30: 7.524217635 | C30: -20.4154085 | D30: -1.912460889 | E30: 20.50478995 | F30: 4 | G30: -81.66163398 | H30: -7.649843557 | I30: 82.01915978 | J30: 8.481189909 | M30: 2) Press DFT
A31: 9 | B31: 9.275715308 | C31: 8.315133129 | D31: -14.5535907 | E31: 16.76151667 | G31: 8.315133129 | H31: -14.5535907 | I31: 16.76151667 | J31: 10.12553613
A32: 10 | B32: 9.301310655 | C32: 5.667299725 | D32: 0.4240661147 | E32: 5.683143342 | G32: 5.667299725 | H32: 0.4240661147 | I32: 5.683143342 | J32: 9.914602517 | M32: 3) Enter multipliers for the frequencies that should be changed in column F
A33: 11 | B33: 9.193974763 | C33: -3.025351055 | D33: 20.88810153 | E33: 21.10605445 | G33: -3.025351055 | H33: 20.88810153 | I33: 21.10605445 | J33: 9.477369535 | N33: Leave all other frequencies = blank
A34: 12 | B34: 8.689581937 | C34: 1.956168378 | D34: 5.478378513 | E34: 5.817149289 | G34: 1.956168378 | H34: 5.478378513 | I34: 5.817149289 | J34: 8.599935333 | N34: Multipliers > 1 will amplify this frequency
A35: 13 | B35: 10.05741018 | C35: -23.64054389 | D35: -27.34370816 | E35: 36.14628185 | G35: -23.64054389 | H35: -27.34370816 | I35: 36.14628185 | J35: 9.608370081 | N35: (Only for positive frequencies, i.e. up to data length/2)
A36: 14 | B36: 12.04030943 | C36: 3.553736176 | D36: 20.52218992 | E36: 20.82760955 | G36: 3.553736176 | H36: 20.52218992 | I36: 20.82760955 | J36: 11.30023813 | N36: (the macro will mirror the multipliers for the negative frequencies)
A37: 15 | B37: 9.259091316 | C37: -15.39033625 | D37: -16.24338735 | E37: 22.37655207 | G37: -15.39033625 | H37: -16.24338735 | I37: 22.37655207 | J37: 8.34065795
A38: 16 | B38: 8.808044853 | C38: -2.138238941 | D38: 15.41839347 | E38: 15.56595397 | G38: -2.138238941 | H38: 15.41839347 | I38: 15.56595397 | J38: 7.85107258 | M38: 4) Press Inverser DFT to get the filtered data i column J
A39: 17 | B39: 10.09530606 | C39: 1.300789429 | D39: -1.629620372 | E39: 2.085117669 | G39: 1.300789429 | H39: -1.629620372 | I39: 2.085117669 | J39: 9.245485235
A40: 18 | B40: 11.39930837 | C40: 0.3438557022 | D40: -1.752469598 | E40: 1.785885337 | G40: 0.3438557022 | H40: -1.752469598 | I40: 1.785885337 | J40: 10.78601651 | M40: 5) Press New sheet to open a new sheet with the filtered data
A41: 19 | B41: 10.0368315 | C41: -9.386761239 | D41: -14.06398401 | E41: 16.90878271 | G41: -9.386761239 | H41: -14.06398401 | I41: 16.90878271 | J41: 9.753436727
A42: 20 | B42: 9.853069621 | C42: 24.21758114 | D42: 8.784743824 | E42: 25.76165679 | G42: 24.21758114 | H42: 8.784743824 | I42: 25.76165679 | J42: 9.942716225 | M42: NOTE: If f(x) is longer than 256 points, the formulas in column E, G, H, I must be copied to the cells below for all x
A43: 21 | B43: 11.34068382 | C43: -6.519883054 | D43: -9.671551162 | E43: 11.66395203 | G43: -6.519883054 | H43: -9.671551162 | I43: 11.66395203 | J43: 11.78972392
A44: 22 | B44: 10.40332504 | C44: 12.46876134 | D44: 12.80003473 | E44: 17.86927247 | G44: 12.46876134 | H44: 12.80003473 | I44: 17.86927247 | J44: 11.14339634
A45: 23 | B45: 10.29783271 | C45: 13.22642422 | D45: -19.07934215 | E45: 23.21550332 | G45: 13.22642422 | H45: -19.07934215 | I45: 23.21550332 | J45: 11.21626607
A46: 24 | B46: 11.49872553 | C46: -23.40947849 | D46: 12.433256 | E46: 26.50640561 | G46: -23.40947849 | H46: 12.433256 | I46: 26.50640561 | J46: 12.45569781
A47: 25 | B47: 9.653336061 | C47: 21.88958868 | D47: -4.084224616 | E47: 22.26735241 | G47: 21.88958868 | H47: -4.084224616 | I47: 22.26735241 | J47: 10.50315689 | L47: Sampling frequencies
A48: 26 | B48: 8.061007983 | C48: -11.51012324 | D48: 6.400198439 | E48: 13.16987005 | G48: -11.51012324 | H48: 6.400198439 | I48: 13.16987005 | J48: 8.674299845 | L48: Ni | M48: DFT | N48: DFT(filtered)
A49: 27 | B49: 8.102706922 | C49: 28.86575667 | D49: 21.06740736 | E49: 35.73608206 | G49: 28.86575667 | H49: 21.06740736 | I49: 35.73608206 | J49: 8.386101693 | L49: 1 | M49: =IF(L49=0,NA(),VLOOKUP(L49,A22:E277,5)) -> 165.0499475 | N49: =IF(L49=0,NA(),VLOOKUP(L49,A22:J277,9)) -> 165.0499475
A50: 28 | B50: 10.22266983 | C50: -12.42170212 | D50: -25.74437689 | E50: 28.58446475 | G50: -12.42170212 | H50: -25.74437689 | I50: 28.58446475 | J50: 10.13302322 | L50: 2 | M50: =IF(L50=0,NA(),VLOOKUP(L50,A23:E278,5)) -> 118.8323995 | N50: =IF(L50=0,NA(),VLOOKUP(L50,A23:J278,9)) -> 118.8323995
A51: 29 | B51: 9.583941178 | C51: 4.654063729 | D51: 12.05051388 | E51: 12.91801819 | G51: 4.654063729 | H51: 12.05051388 | I51: 12.91801819 | J51: 9.134901081 | L51: 4 | M51: 85.71182191 | N51: 85.71182191
A52: 30 | B52: 10.02856762 | C52: 10.43919384 | D52: -8.795141196 | E52: 13.65032148 | G52: 10.43919384 | H52: -8.795141196 | I52: 13.65032148 | J52: 9.288496316 | L52: 8 | M52: 20.50478995 | N52: 82.01915978
A53: 31 | B53: 9.964806045 | C53: -13.76277164 | D53: -2.358730398 | E53: 13.96343411 | G53: -13.76277164 | H53: -2.358730398 | I53: 13.96343411 | J53: 9.046372678 | L53: 16 | M53: 15.56595397 | N53: 15.56595397
A54: 32 | B54: 9.88637724 | C54: 4.855876299 | D54: -0.07556584997 | E54: 4.856464232 | G54: 4.855876299 | H54: -0.07556584997 | I54: 4.856464232 | J54: 8.929404967 | L54: 32 | M54: 4.856464232 | N54: 4.856464232
A55: 33 | B55: 10.64006263 | C55: -16.72934955 | D55: 3.448061763 | E55: 17.08099138 | G55: -16.72934955 | H55: 3.448061763 | I55: 17.08099138 | J55: 9.790241807 | L55: 64 | M55: 10.3126039 | N55: 10.3126039
A56: 34 | B56: 10.89148622 | C56: 5.19900931 | D56: -10.59414432 | E56: 11.80108434 | G56: 5.19900931 | H56: -10.59414432 | I56: 11.80108434 | J56: 10.27819436
A57: 35 | B57: 10.87125043 | C57: -7.082886701 | D57: 25.71400844 | E57: 26.67166125 | G57: -7.082886701 | H57: 25.71400844 | I57: 26.67166125 | J57: 10.58785566
A58: 36 | B58: 9.720487781 | C58: 31.46554054 | D58: -8.277859308 | E58: 32.53618288 | G58: 31.46554054 | H58: -8.277859308 | I58: 32.53618288 | J58: 9.810134385
A59: 37 | B59: 10.34312104 | C59: -14.65039145 | D59: 15.1135216 | E59: 21.04881243 | G59: -14.65039145 | H59: 15.1135216 | I59: 21.04881243 | J59: 10.79216114
A60: 38 | B60: 10.2862515 | C60: 20.32392404 | D60: -17.77418666 | E60: 26.99969629 | G60: 20.32392404 | H60: -17.77418666 | I60: 26.99969629 | J60: 11.0263228
A61: 39 | B61: 10.41911313 | C61: -11.96723184 | D61: -23.19819606 | E61: 26.10308293 | G61: -11.96723184 | H61: -23.19819606 | I61: 26.10308293 | J61: 11.3375465
A62: 40 | B62: 9.611171104 | C62: 9.695651822 | D62: 10.75906206 | E62: 14.48319994 | G62: 9.695651822 | H62: 10.75906206 | I62: 14.48319994 | J62: 10.56814338
A63: 41 | B63: 9.346578666 | C63: 4.084668253 | D63: -14.23174129 | E63: 14.80631537 | G63: 4.084668253 | H63: -14.23174129 | I63: 14.80631537 | J63: 10.19639949
A64: 42 | B64: 10.64446872 | C64: 4.633236314 | D64: 0.8994860665 | E64: 4.719740875 | G64: 4.633236314 | H64: 0.8994860665 | I64: 4.719740875 | J64: 11.25776058
A65: 43 | B65: 10.34298223 | C65: 6.23368528 | D65: -2.53809015 | E65: 6.730581979 | G65: 6.23368528 | H65: -2.53809015 | I65: 6.730581979 | J65: 10.626377
A66: 44 | B66: 12.12847495 | C66: 2.539391355 | D66: -4.952551818 | E66: 5.565633653 | G66: 2.539391355 | H66: -4.952551818 | I66: 5.565633653 | J66: 12.03882835
A67: 45 | B67: 9.687753576 | C67: -16.15607873 | D67: -6.484479777 | E67: 17.40882989 | G67: -16.15607873 | H67: -6.484479777 | I67: 17.40882989 | J67: 9.238713479
A68: 46 | B68: 10.89652038 | C68: 9.161491972 | D68: -3.586554105 | E68: 9.838511346 | G68: 9.161491972 | H68: -3.586554105 | I68: 9.838511346 | J68: 10.15644907
A69: 47 | B69: 12.69349029 | C69: -6.904357894 | D69: -24.39859556 | E69: 25.35668794 | G69: -6.904357894 | H69: -24.39859556 | I69: 25.35668794 | J69: 11.77505692
A70: 48 | B70: 10.38484788 | C70: 13.0282857 | D70: 17.0262584 | E70: 21.43897627 | G70: 13.0282857 | H70: 17.0262584 | I70: 21.43897627 | J70: 9.427875606
A71: 49 | B71: 4.781050833 | C71: -15.44698865 | D71: -14.57946156 | E71: 21.24076641 | G71: -15.44698865 | H71: -14.57946156 | I71: 21.24076641 | J71: 3.931230007
A72: 50 | B72: 16.67828731 | C72: 9.386794474 | D72: 8.497620703 | E72: 12.66181141 | G72: 9.386794474 | H72: 8.497620703 | I72: 12.66181141 | J72: 16.06499545
A73: 51 | B73: 14.50429284 | C73: -28.02930327 | D73: -4.217841264 | E73: 28.34487656 | G73: -28.02930327 | H73: -4.217841264 | I73: 28.34487656 | J73: 14.22089807
A74: 52 | B74: 21.08455205 | C74: 7.723390684 | D74: 7.077101548 | E74: 10.47550142 | G74: 7.723390684 | H74: 7.077101548 | I74: 10.47550142 | J74: 21.17419866
A75: 53 | B75: 14.97901219 | C75: -23.53529982 | D75: -25.15969651 | E75: 34.451715 | G75: -23.53529982 | H75: -25.15969651 | I75: 34.451715 | J75: 15.42805229
A76: 54 | B76: 21.0037117 | C76: 26.1813448 | D76: 29.0714305 | E76: 39.12302247 | G76: 26.1813448 | H76: 29.0714305 | I76: 39.12302247 | J76: 21.74378301
A77: 55 | B77: 15.84145501 | C77: -4.41578624 | D77: -30.97841941 | E77: 31.29155857 | G77: -4.41578624 | H77: -30.97841941 | I77: 31.29155857 | J77: 16.75988837
A78: 56 | B78: 23.57682421 | C78: 8.997631949 | D78: 30.9604535 | E78: 32.2413874 | G78: 8.997631949 | H78: 30.9604535 | I78: 32.2413874 | J78: 24.53379648
A79: 57 | B79: 25.1292701 | C79: 17.33358135 | D79: -27.87591197 | E79: 32.82559231 | G79: 17.33358135 | H79: -27.87591197 | I79: 32.82559231 | J79: 25.97909093
A80: 58 | B80: 17.00305978 | C80: -24.87461061 | D80: 40.14290699 | E80: 47.22498528 | G80: -24.87461061 | H80: 40.14290699 | I80: 47.22498528 | J80: 17.61635164
A81: 59 | B81: 18.99613846 | C81: 26.09597915 | D81: -19.51679476 | E81: 32.58689008 | G81: 26.09597915 | H81: -19.51679476 | I81: 32.58689008 | J81: 19.27953323
A82: 60 | B82: 14.24029214 | C82: -32.29307109 | D82: 2.965536636 | E82: 32.42895076 | G82: -32.29307109 | H82: 2.965536636 | I82: 32.42895076 | J82: 14.15064553
A83: 61 | B83: 28.97219247 | C83: 17.74059936 | D83: 4.809071444 | E83: 18.38086053 | G83: 17.74059936 | H83: 4.809071444 | I83: 18.38086053 | J83: 28.52315237
A84: 62 | B84: 15.32644954 | C84: -5.747345688 | D84: -8.926341363 | E84: 10.61656972 | G84: -5.747345688 | H84: -8.926341363 | I84: 10.61656972 | J84: 14.58637823
A85: 63 | B85: 19.48895592 | C85: -6.922599946 | D85: 11.94392868 | E85: 13.8050651 | G85: -6.922599946 | H85: 11.94392868 | I85: 13.8050651 | J85: 18.57052256
A86: 64 | B86: 19.01507751 | C86: 10.3126039 | D86: -5.479242782e-13 | E86: 10.3126039 | G86: 10.3126039 | H86: -5.479242782e-13 | I86: 10.3126039 | J86: 18.05810523
A87: 65 | B87: 12.32196915 | C87: -6.922599946 | D87: -11.94392868 | E87: =IF(C87="","",SQRT(C87^2+D87^2)) -> 13.8050651 | G87: =IF($F87="",C87,$F87*C87) -> -6.922599946 | H87: -11.94392868 | I87: =IF(G87="","",SQRT(G87^2+H87^2)) -> 13.8050651 | J87: 11.47214833
A88: 66 | B88: 13.90723729 | C88: -5.747345688 | D88: 8.926341363 | E88: 10.61656972 | G88: -5.747345688 | H88: 8.926341363 | I88: 10.61656972 | J88: 13.29394542
A89: 67 | B89: 10.46008252 | C89: 17.74059936 | D89: -4.809071444 | E89: 18.38086053 | G89: 17.74059936 | H89: -4.809071444 | I89: 18.38086053 | J89: 10.17668775
A90: 68 | B90: 12.53987122 | C90: -32.29307109 | D90: -2.965536636 | E90: 32.42895076 | G90: -32.29307109 | H90: -2.965536636 | I90: 32.42895076 | J90: 12.62951782
A91: 69 | B91: 11.66725891 | C91: 26.09597915 | D91: 19.51679476 | E91: 32.58689008 | G91: 26.09597915 | H91: 19.51679476 | I91: 32.58689008 | J91: 12.11629901
A92: 70 | B92: 10.75018231 | C92: -24.87461061 | D92: -40.14290699 | E92: 47.22498528 | G92: -24.87461061 | H92: -40.14290699 | I92: 47.22498528 | J92: 11.49025361
A93: 71 | B93: 12.76402412 | C93: 17.33358135 | D93: 27.87591197 | E93: 32.82559231 | G93: 17.33358135 | H93: 27.87591197 | I93: 32.82559231 | J93: 13.68245749
A94: 72 | B94: 12.84418729 | C94: 8.997631949 | D94: -30.9604535 | E94: 32.2413874 | G94: 8.997631949 | H94: -30.9604535 | I94: 32.2413874 | J94: 13.80115957
A95: 73 | B95: 8.555514694 | C95: -4.41578624 | D95: 30.97841941 | E95: 31.29155857 | G95: -4.41578624 | H95: 30.97841941 | I95: 31.29155857 | J95: 9.40533552
A96: 74 | B96: 10.0151865 | C96: 26.1813448 | D96: -29.0714305 | E96: 39.12302247 | G96: 26.1813448 | H96: -29.0714305 | I96: 39.12302247 | J96: 10.62847836
A97: 75 | B97: 10.01261764 | C97: -23.53529982 | D97: 25.15969651 | E97: 34.451715 | G97: -23.53529982 | H97: 25.15969651 | I97: 34.451715 | J97: 10.29601241
A98: 76 | B98: 10.93520581 | C98: 7.723390684 | D98: -7.077101548 | E98: 10.47550142 | G98: 7.723390684 | H98: -7.077101548 | I98: 10.47550142 | J98: 10.84555921
A99: 77 | B99: 9.131904631 | C99: -28.02930327 | D99: 4.217841264 | E99: 28.34487656 | G99: -28.02930327 | H99: 4.217841264 | I99: 28.34487656 | J99: 8.682864534
A100: 78 | B100: 9.411551598 | C100: 9.386794474 | D100: -8.497620703 | E100: 12.66181141 | G100: 9.386794474 | H100: -8.497620703 | I100: 12.66181141 | J100: 8.671480293
A101: 79 | B101: 10.68736804 | C101: -15.44698865 | D101: 14.57946156 | E101: 21.24076641 | G101: -15.44698865 | H101: 14.57946156 | I101: 21.24076641 | J101: 9.768934669
A102: 80 | B102: 10.27482862 | C102: 13.0282857 | D102: -17.0262584 | E102: 21.43897627 | G102: 13.0282857 | H102: -17.0262584 | I102: 21.43897627 | J102: 9.317856345
A103: 81 | B103: 9.107153502 | C103: -6.904357894 | D103: 24.39859556 | E103: 25.35668794 | G103: -6.904357894 | H103: 24.39859556 | I103: 25.35668794 | J103: 8.257332676
A104: 82 | B104: 10.77043963 | C104: 9.161491972 | D104: 3.586554105 | E104: 9.838511346 | G104: 9.161491972 | H104: 3.586554105 | I104: 9.838511346 | J104: 10.15714777
A105: 83 | B105: 10.65010312 | C105: -16.15607873 | D105: 6.484479777 | E105: 17.40882989 | G105: -16.15607873 | H105: 6.484479777 | I105: 17.40882989 | J105: 10.36670835
A106: 84 | B106: 9.253319466 | C106: 2.539391355 | D106: 4.952551818 | E106: 5.565633653 | G106: 2.539391355 | H106: 4.952551818 | I106: 5.565633653 | J106: 9.34296607
A107: 85 | B107: 9.809468545 | C107: 6.23368528 | D107: 2.53809015 | E107: 6.730581979 | G107: 6.23368528 | H107: 2.53809015 | I107: 6.730581979 | J107: 10.25850864
A108: 86 | B108: 7.85395811 | C108: 4.633236314 | D108: -0.8994860665 | E108: 4.719740875 | G108: 4.633236314 | H108: -0.8994860665 | I108: 4.719740875 | J108: 8.594029416
A109: 87 | B109: 9.894071824 | C109: 4.084668253 | D109: 14.23174129 | E109: 14.80631537 | G109: 4.084668253 | H109: 14.23174129 | I109: 14.80631537 | J109: 10.81250519
A110: 88 | B110: 11.13597765 | C110: 9.695651822 | D110: -10.75906206 | E110: 14.48319994 | G110: 9.695651822 | H110: -10.75906206 | I110: 14.48319994 | J110: 12.09294993
A111: 89 | B111: 11.74596514 | C111: -11.96723184 | D111: 23.19819606 | E111: 26.10308293 | G111: -11.96723184 | H111: 23.19819606 | I111: 26.10308293 | J111: 12.59578597
A112: 90 | B112: 11.4939303 | C112: 20.32392404 | D112: 17.77418666 | E112: 26.99969629 | G112: 20.32392404 | H112: 17.77418666 | I112: 26.99969629 | J112: 12.10722217
A113: 91 | B113: 9.031371753 | C113: -14.65039145 | D113: -15.1135216 | E113: 21.04881243 | G113: -14.65039145 | H113: -15.1135216 | I113: 21.04881243 | J113: 9.314766525
A114: 92 | B114: 11.06673831 | C114: 31.46554054 | D114: 8.277859308 | E114: 32.53618288 | G114: 31.46554054 | H114: 8.277859308 | I114: 32.53618288 | J114: 10.9770917
A115: 93 | B115: 9.785214698 | C115: -7.082886701 | D115: -25.71400844 | E115: 26.67166125 | G115: -7.082886701 | H115: -25.71400844 | I115: 26.67166125 | J115: 9.336174601
A116: 94 | B116: 9.069776912 | C116: 5.19900931 | D116: 10.59414432 | E116: 11.80108434 | G116: 5.19900931 | H116: 10.59414432 | I116: 11.80108434 | J116: 8.329705606
A117: 95 | B117: 9.823748871 | C117: -16.72934955 | D117: -3.448061763 | E117: 17.08099138 | G117: -16.72934955 | H117: -3.448061763 | I117: 17.08099138 | J117: 8.905315504
A118: 96 | B118: 8.970152675 | C118: 4.855876299 | D118: 0.07556584997 | E118: 4.856464232 | G118: 4.855876299 | H118: 0.07556584997 | I118: 4.856464232 | J118: 8.013180402
A119: 97 | B119: 8.79562428 | C119: -13.76277164 | D119: 2.358730398 | E119: 13.96343411 | G119: -13.76277164 | H119: 2.358730398 | I119: 13.96343411 | J119: 7.945803454
A120: 98 | B120: 9.765242814 | C120: 10.43919384 | D120: 8.795141196 | E120: 13.65032148 | G120: 10.43919384 | H120: 8.795141196 | I120: 13.65032148 | J120: 9.151950952
A121: 99 | B121: 10.82010494 | C121: 4.654063729 | D121: -12.05051388 | E121: 12.91801819 | G121: 4.654063729 | H121: -12.05051388 | I121: 12.91801819 | J121: 10.53671017
A122: 100 | B122: 9.246010662 | C122: -12.42170212 | D122: 25.74437689 | E122: 28.58446475 | G122: -12.42170212 | H122: 25.74437689 | I122: 28.58446475 | J122: 9.335657267
A123: 101 | B123: 10.7274469 | C123: 28.86575667 | D123: -21.06740736 | E123: 35.73608206 | G123: 28.86575667 | H123: -21.06740736 | I123: 35.73608206 | J123: 11.176487
A124: 102 | B124: 11.4568954 | C124: -11.51012324 | D124: -6.400198439 | E124: 13.16987005 | G124: -11.51012324 | H124: -6.400198439 | I124: 13.16987005 | J124: 12.19696671
A125: 103 | B125: 11.97575648 | C125: 21.88958868 | D125: 4.084224616 | E125: 22.26735241 | G125: 21.88958868 | H125: 4.084224616 | I125: 22.26735241 | J125: 12.89418985
A126: 104 | B126: 10.32755113 | C126: -23.40947849 | D126: -12.433256 | E126: 26.50640561 | G126: -23.40947849 | H126: -12.433256 | I126: 26.50640561 | J126: 11.28452341
A127: 105 | B127: 9.428252062 | C127: 13.22642422 | D127: 19.07934215 | E127: 23.21550332 | G127: 13.22642422 | H127: 19.07934215 | I127: 23.21550332 | J127: 10.27807289
A128: 106 | B128: 9.280361559 | C128: 12.46876134 | D128: -12.80003473 | E128: 17.86927247 | G128: 12.46876134 | H128: -12.80003473 | I128: 17.86927247 | J128: 9.893653422
A129: 107 | B129: 9.920040241 | C129: -6.519883054 | D129: 9.671551162 | E129: 11.66395203 | G129: -6.519883054 | H129: 9.671551162 | I129: 11.66395203 | J129: 10.20343501
A130: 108 | B130: 7.567006411 | C130: 24.21758114 | D130: -8.784743824 | E130: 25.76165679 | G130: 24.21758114 | H130: -8.784743824 | I130: 25.76165679 | J130: 7.477359807
A131: 109 | B131: 10.40746529 | C131: -9.386761239 | D131: 14.06398401 | E131: 16.90878271 | G131: -9.386761239 | H131: 14.06398401 | I131: 16.90878271 | J131: 9.958425192
A132: 110 | B132: 9.918850022 | C132: 0.3438557022 | D132: 1.752469598 | E132: 1.785885337 | G132: 0.3438557022 | H132: 1.752469598 | I132: 1.785885337 | J132: 9.178778716
A133: 111 | B133: 8.135837868 | C133: 1.300789429 | D133: 1.629620372 | E133: 2.085117669 | G133: 1.300789429 | H133: 1.629620372 | I133: 2.085117669 | J133: 7.217404501
A134: 112 | B134: 11.02431287 | C134: -2.138238941 | D134: -15.41839347 | E134: 15.56595397 | G134: -2.138238941 | H134: -15.41839347 | I134: 15.56595397 | J134: 10.0673406
A135: 113 | B135: 8.969994021 | C135: -15.39033625 | D135: 16.24338735 | E135: 22.37655207 | G135: -15.39033625 | H135: 16.24338735 | I135: 22.37655207 | J135: 8.120173195
A136: 114 | B136: 10.5927813 | C136: 3.553736176 | D136: -20.52218992 | E136: 20.82760955 | G136: 3.553736176 | H136: -20.52218992 | I136: 20.82760955 | J136: 9.979489436
A137: 115 | B137: 9.848703407 | C137: -23.64054389 | D137: 27.34370816 | E137: 36.14628185 | G137: -23.64054389 | H137: 27.34370816 | I137: 36.14628185 | J137: 9.565308636
A138: 116 | B138: 10.37793656 | C138: 1.956168378 | D138: -5.478378513 | E138: 5.817149289 | G138: 1.956168378 | H138: -5.478378513 | I138: 5.817149289 | J138: 10.46758316
A139: 117 | B139: 9.990162577 | C139: -3.025351055 | D139: -20.88810153 | E139: 21.10605445 | G139: -3.025351055 | H139: -20.88810153 | I139: 21.10605445 | J139: 10.43920267
A140: 118 | B140: 8.747907534 | C140: 5.667299725 | D140: -0.4240661147 | E140: 5.683143342 | G140: 5.667299725 | H140: -0.4240661147 | I140: 5.683143342 | J140: 9.48797884
A141: 119 | B141: 9.232402794 | C141: 8.315133129 | D141: 14.5535907 | E141: 16.76151667 | G141: 8.315133129 | H141: 14.5535907 | I141: 16.76151667 | J141: 10.15083616
A142: 120 | B142: 7.730415614 | C142: -20.4154085 | D142: 1.912460889 | E142: 20.50478995 | G142: -20.4154085 | H142: 1.912460889 | I142: 20.50478995 | J142: 8.687387887
A143: 121 | B143: 9.565092438 | C143: 24.69095672 | D143: 21.68709888 | E143: 32.86295181 | G143: 24.69095672 | H143: 21.68709888 | I143: 32.86295181 | J143: 10.41491326
A144: 122 | B144: 9.973505044 | C144: -6.291157862 | D144: -51.78770417 | E144: 52.16842887 | G144: -6.291157862 | H144: -51.78770417 | I144: 52.16842887 | J144: 10.58679691
A145: 123 | B145: 10.54287367 | C145: -11.30882044 | D145: 58.51011388 | E145: 59.59297648 | G145: -11.30882044 | H145: 58.51011388 | I145: 59.59297648 | J145: 10.82626844
A146: 124 | B146: 9.216750166 | C146: 32.66950858 | D146: -79.24152714 | E146: 85.71182191 | G146: 32.66950858 | H146: -79.24152714 | I146: 85.71182191 | J146: 9.127103561
A147: 125 | B147: 9.103490713 | C147: -81.49551749 | D147: 84.04017223 | E147: 117.0652379 | G147: -81.49551749 | H147: 84.04017223 | I147: 117.0652379 | J147: 8.654450616
A148: 126 | B148: 9.084726967 | C148: 97.24179489 | D148: -68.30206804 | E148: 118.8323995 | G148: 97.24179489 | H148: -68.30206804 | I148: 118.8323995 | J148: 8.344655662
A149: 127 | B149: 8.402270261 | C149: -159.2625596 | D149: 43.32346099 | E149: 165.0499475 | G149: -159.2625596 | H149: 43.32346099 | I149: 165.0499475 | J149: 7.483836894
A150: 128 | C150: 20.62520779 | D150: -1.358462013e-12 | E150: =IF(C150="","",SQRT(C150^2+D150^2)) -> 20.62520779 | G150: =IF($F150="",C150,$F150*C150) -> 20.62520779 | H150: =IF($F150="",D150,$F150*D150) -> -1.358462013e-12 | I150: =IF(G150="","",SQRT(G150^2+H150^2)) -> 20.62520779
A151: 129 | C151: -2.968292279e-12 | D151: -1.304234498e-13 | E151: 2.971156227e-12 | G151: -2.968292279e-12 | H151: -1.304234498e-13 | I151: 2.971156227e-12
A152: 130 | C152: -13.84519989 | D152: -23.88785736 | E152: 27.61013019 | G152: -13.84519989 | H152: -23.88785736 | I152: 27.61013019
A153: 131 | C153: -4.163780432e-12 | D153: -2.04980477e-12 | E153: 4.640987727e-12 | G153: -4.163780432e-12 | H153: -2.04980477e-12 | I153: 4.640987727e-12
A154: 132 | C154: -11.49469138 | D154: 17.85268273 | E154: 21.23313944 | G154: -11.49469138 | H154: 17.85268273 | I154: 21.23313944
A155: 133 | C155: -8.206768598e-13 | D155: -2.886579864e-13 | E155: 8.699620344e-13 | G155: -8.206768598e-13 | H155: -2.886579864e-13 | I155: 8.699620344e-13
A156: 134 | C156: 35.48119873 | D156: -9.618142887 | E156: 36.76172107 | G156: 35.48119873 | H156: -9.618142887 | I156: 36.76172107
A157: 135 | C157: -4.121147867e-13 | D157: -3.472555576e-12 | E157: 3.496924481e-12 | G157: -4.121147867e-13 | H157: -3.472555576e-12 | I157: 3.496924481e-12
A158: 136 | C158: -64.58614217 | D158: -5.931073271 | E158: 64.85790153 | G158: -64.58614217 | H158: -5.931073271 | I158: 64.85790153
A159: 137 | C159: 1.664446359e-12 | D159: 4.440892099e-14 | E159: 1.665038688e-12 | G159: 1.664446359e-12 | H159: 4.440892099e-14 | I159: 1.665038688e-12
A160: 138 | C160: 52.19195829 | D160: 39.03358953 | E160: 65.17378017 | G160: 52.19195829 | H160: 39.03358953 | I160: 65.17378017
A161: 139 | C161: 1.360689339e-12 | D161: 4.926725694e-12 | E161: 5.111174184e-12 | G161: 1.360689339e-12 | H161: 4.926725694e-12 | I161: 5.111174184e-12
A162: 140 | C162: -49.74922122 | D162: -80.28581398 | E162: 94.44997056 | G162: -49.74922122 | H162: -80.28581398 | I162: 94.44997056
A163: 141 | C163: -1.898925461e-12 | D163: -6.262990127e-12 | E163: 6.5445369e-12 | G163: -1.898925461e-12 | H163: -6.262990127e-12 | I163: 6.5445369e-12
A164: 142 | C164: 34.66716269 | D164: 55.75182393 | E164: 65.65118461 | G164: 34.66716269 | H164: 55.75182393 | I164: 65.65118461
A165: 143 | C165: 3.340439036e-12 | D165: 5.173639295e-13 | E165: 3.380266024e-12 | G165: 3.340439036e-12 | H165: 5.173639295e-13 | I165: 3.380266024e-12
A166: 144 | C166: 17.9952639 | D166: -61.92090699 | E166: 64.4827748 | G166: 17.9952639 | H166: -61.92090699 | I166: 64.4827748
A167: 145 | C167: 7.798206525e-13 | D167: -2.533084853e-12 | E167: 2.650403577e-12 | G167: 7.798206525e-13 | H167: -2.533084853e-12 | I167: 2.650403577e-12
A168: 146 | C168: -8.83157248 | D168: 61.95683883 | E168: 62.58311713 | G168: -8.83157248 | H168: 61.95683883 | I168: 62.58311713
A169: 147 | C169: -3.281819261e-12 | D169: -1.301181385e-13 | E169: 3.284397721e-12 | G169: -3.281819261e-12 | H169: -1.301181385e-13 | I169: 3.284397721e-12
A170: 148 | C170: 52.36268961 | D170: -58.142861 | E170: 78.24604493 | G170: 52.36268961 | H170: -58.142861 | I170: 78.24604493
A171: 149 | C171: 2.365219132e-12 | D171: 1.54543045e-13 | E171: 2.370262663e-12 | G171: 2.365219132e-12 | H171: 1.54543045e-13 | I171: 2.370262663e-12
A172: 150 | C172: -47.07059965 | D172: 50.31939303 | E172: 68.90343 | G172: -47.07059965 | H172: 50.31939303 | I172: 68.90343
A173: 151 | C173: -7.993605777e-15 | D173: -2.54019028e-13 | E173: 2.541447704e-13 | G173: -7.993605777e-15 | H173: -2.54019028e-13 | I173: 2.541447704e-13
A174: 152 | C174: 15.44678137 | D174: -14.1542031 | E174: 20.95100284 | G174: 15.44678137 | H174: -14.1542031 | I174: 20.95100284
A175: 153 | C175: -1.252331572e-13 | D175: 3.552713679e-13 | E175: 3.766976088e-13 | G175: -1.252331572e-13 | H175: 3.552713679e-13 | I175: 3.766976088e-13
A176: 154 | C176: -56.05860655 | D176: 8.435682529 | E176: 56.68975311 | G176: -56.05860655 | H176: 8.435682529 | I176: 56.68975311
A177: 155 | C177: -1.385558335e-13 | D177: -4.014566457e-13 | E177: 4.246941928e-13 | G177: -1.385558335e-13 | H177: -4.014566457e-13 | I177: 4.246941928e-13
A178: 156 | C178: 18.77358895 | D178: -16.99524141 | E178: 25.32362282 | G178: 18.77358895 | H178: -16.99524141 | I178: 25.32362282
A179: 157 | C179: -2.060573934e-13 | D179: 2.406075339e-12 | E179: 2.414882644e-12 | G179: -2.060573934e-13 | H179: 2.406075339e-12 | I179: 2.414882644e-12
A180: 158 | C180: -30.89397729 | D180: 29.15892313 | E180: 42.48153282 | G180: -30.89397729 | H180: 29.15892313 | I180: 42.48153282
A181: 159 | C181: 2.673417043e-13 | D181: 2.690292433e-12 | E181: 2.703543039e-12 | G181: 2.673417043e-13 | H181: 2.690292433e-12 | I181: 2.703543039e-12
A182: 160 | C182: 26.05657141 | D182: -34.05251681 | E182: 42.87795254 | G182: 26.05657141 | H182: -34.05251681 | I182: 42.87795254
A183: 161 | C183: 1.306510455e-12 | D183: 9.237055565e-13 | E183: 1.600062975e-12 | G183: 1.306510455e-12 | H183: 9.237055565e-13 | I183: 1.600062975e-12
A184: 162 | C184: -13.80871579 | D184: 48.79719112 | E184: 50.71337588 | G184: -13.80871579 | H184: 48.79719112 | I184: 50.71337588
A185: 163 | C185: -1.359801161e-12 | D185: 1.534772309e-12 | E185: 2.050508531e-12 | G185: -1.359801161e-12 | H185: 1.534772309e-12 | I185: 2.050508531e-12
A186: 164 | C186: 18.32298394 | D186: 7.173108211 | E186: 19.67702269 | G186: 18.32298394 | H186: 7.173108211 | I186: 19.67702269
A187: 165 | C187: -2.724931392e-12 | D187: -2.243538688e-12 | E187: 3.52969077e-12 | G187: -2.724931392e-12 | H187: -2.243538688e-12 | I187: 3.52969077e-12
A188: 166 | C188: -32.31215747 | D188: 12.96895955 | E188: 34.81765977 | G188: -32.31215747 | H188: 12.96895955 | I188: 34.81765977
A189: 167 | C189: 2.382094522e-12 | D189: 1.921129922e-12 | E189: 3.060247455e-12 | G189: 2.382094522e-12 | H189: 1.921129922e-12 | I189: 3.060247455e-12
A190: 168 | C190: 5.078782711 | D190: 9.905103635 | E190: 11.13126731 | G190: 5.078782711 | H190: 9.905103635 | I190: 11.13126731
A191: 169 | C191: -1.015187934e-12 | D191: -2.3829827e-12 | E191: 2.590214873e-12 | G191: -1.015187934e-12 | H191: -2.3829827e-12 | I191: 2.590214873e-12
A192: 170 | C192: 12.46737056 | D192: 5.076180301 | E192: 13.46116396 | G192: 12.46737056 | H192: 5.076180301 | I192: 13.46116396
A193: 171 | C193: 9.912071164e-13 | D193: 1.869615573e-12 | E193: 2.116117657e-12 | G193: 9.912071164e-13 | H193: 1.869615573e-12 | I193: 2.116117657e-12
A194: 172 | C194: 9.266472628 | D194: -1.798972133 | E194: 9.43948175 | G194: 9.266472628 | H194: -1.798972133 | I194: 9.43948175
A195: 173 | C195: -4.04121181e-13 | D195: 8.393286066e-13 | E195: 9.315505562e-13 | G195: -4.04121181e-13 | H195: 8.393286066e-13 | I195: 9.315505562e-13
A196: 174 | C196: 8.169336506 | D196: 28.46348258 | E196: 29.61263075 | G196: 8.169336506 | H196: 28.46348258 | I196: 29.61263075
A197: 175 | C197: 1.212363543e-13 | D197: 7.434053373e-13 | E197: 7.53226227e-13 | G197: 1.212363543e-13 | H197: 7.434053373e-13 | I197: 7.53226227e-13
A198: 176 | C198: 19.39130364 | D198: -21.51812411 | E198: 28.96639989 | G198: 19.39130364 | H198: -21.51812411 | I198: 28.96639989
A199: 177 | C199: -2.271072219e-12 | D199: -2.278177647e-12 | E199: 3.216809353e-12 | G199: -2.271072219e-12 | H199: -2.278177647e-12 | I199: 3.216809353e-12
A200: 178 | C200: -23.93446369 | D200: 46.39639212 | E200: 52.20616586 | G200: -23.93446369 | H200: 46.39639212 | I200: 52.20616586
A201: 179 | C201: 5.164757511e-13 | D201: -2.149391776e-13 | E201: 5.594158127e-13 | G201: 5.164757511e-13 | H201: -2.149391776e-13 | I201: 5.594158127e-13
A202: 180 | C202: 40.64784807 | D202: 35.54837331 | E202: 53.99939257 | G202: 40.64784807 | H202: 35.54837331 | I202: 53.99939257
A203: 181 | C203: 1.050270981e-12 | D203: 1.374900194e-12 | E203: 1.730150189e-12 | G203: 1.050270981e-12 | H203: 1.374900194e-12 | I203: 1.730150189e-12
A204: 182 | C204: -29.30078289 | D204: -30.2270432 | E204: 42.09762486 | G204: -29.30078289 | H204: -30.2270432 | I204: 42.09762486
A205: 183 | C205: -1.808331263e-12 | D205: -8.348877145e-14 | E205: 1.810257531e-12 | G205: -1.808331263e-12 | H205: -8.348877145e-14 | I205: 1.810257531e-12
A206: 184 | C206: 62.93108108 | D206: 16.55571862 | E206: 65.07236576 | G206: 62.93108108 | H206: 16.55571862 | I206: 65.07236576
A207: 185 | C207: -5.59774449e-13 | D207: 7.904787935e-13 | E207: 9.686093933e-13 | G207: -5.59774449e-13 | H207: 7.904787935e-13 | I207: 9.686093933e-13
A208: 186 | C208: -14.1657734 | D208: -51.42801688 | E208: 53.34332251 | G208: -14.1657734 | H208: -51.42801688 | I208: 53.34332251
A209: 187 | C209: 3.559375017e-13 | D209: -3.907985047e-14 | E209: 3.580764441e-13 | G209: 3.559375017e-13 | H209: -3.907985047e-14 | I209: 3.580764441e-13
A210: 188 | C210: 10.39801862 | D210: 21.18828864 | E210: 23.60216869 | G210: 10.39801862 | H210: 21.18828864 | I210: 23.60216869
A211: 189 | C211: 6.622480342e-13 | D211: 2.859934511e-13 | E211: 7.213630937e-13 | G211: 6.622480342e-13 | H211: 2.859934511e-13 | I211: 7.213630937e-13
A212: 190 | C212: -33.45869911 | D212: -6.896123526 | E212: 34.16198275 | G212: -33.45869911 | H212: -6.896123526 | I212: 34.16198275
A213: 191 | C213: -2.066125049e-13 | D213: 3.552713679e-15 | E213: 2.066430472e-13 | G213: -2.066125049e-13 | H213: 3.552713679e-15 | I213: 2.066430472e-13
A214: 192 | C214: 9.711752599 | D214: 0.1511316999 | E214: =IF(C214="","",SQRT(C214^2+D214^2)) -> 9.712928463 | G214: =IF($F214="",C214,$F214*C214) -> 9.711752599 | H214: =IF($F214="",D214,$F214*D214) -> 0.1511316999 | I214: =IF(G214="","",SQRT(G214^2+H214^2)) -> 9.712928463
A215: 193 | C215: 1.046912557e-12 | D215: -6.252776075e-13 | E215: 1.219425269e-12 | G215: 1.046912557e-12 | H215: -6.252776075e-13 | I215: 1.219425269e-12
A216: 194 | C216: -27.52554327 | D216: 4.717460795 | E216: 27.92686823 | G216: -27.52554327 | H216: 4.717460795 | I216: 27.92686823
A217: 195 | C217: 3.463895837e-14 | D217: -1.826094831e-12 | E217: 1.826423332e-12 | G217: 3.463895837e-14 | H217: -1.826094831e-12 | I217: 1.826423332e-12
A218: 196 | C218: 20.87838767 | D218: 17.59028239 | E218: 27.30064297 | G218: 20.87838767 | H218: 17.59028239 | I218: 27.30064297
... 59 more rows

Sheet Example Fig. 12
A1: =DFT!A1 -> SU_3.0 | C1: Run at: | D1: =IF(AD23<>"",AD23,"Please update SU") -> 2022-02-07T14:37:44 | F1: Runtime: | G1: =AE23 -> 27 | H1: s | I1: Nr: | J1: =AF23 -> 128 | K1: Mean: | L1: =AG23 -> 11.06185521 | M1: RSD % | N1: =AH23 -> 31.37614683 | P1: =DFT!P1 -> Author: Bo Svensmark, svensmark@plen.ku.dk, Analytical Chemistry, ECP, PLEN, University of Copenhagen, 2022 | AM1: Manual:
A3: Title: | C3: Example of calculation of SU for Fig. S14: Graph with Ratio = PS in: Extensions to the Theory of Sampling 2, Supplements, Proceedings WCSB10 | T3: Table 3 | AN3: Do only enter values in the WHITE cells!
A4: Comments: | C4: SU for the whole range 1-128 | T4: Monte Carlo | V4: 4000
P5: Table 2 | T5: N | V5: =AE16 -> 128 | Y5: Table 1 | AD5: INPUT/OUTPUT for Macros - don't change! | AN5: 1) Enter the input data, x and f(x), in Table 1
C6: To make your own SU estimates, start with the next Sheet SU | I6: Manual for use in cell AM1 | P6: Number of | Q6: Ratio | Y6: INPUT | AD6: Number of | AE6: Ratio | AO6: Max x = 1280
P7: increments | Q7: 0 | R7: 2 | S7: 4 | T7: 8 | U7: 16 | V7: 32 | Y7: x | Z7: f(x) | AA7: Variogram | AB7: DFT | AD7: increments | AE7: =IF(Q7<>"",Q7,"") -> 0 | AF7: 2 | AG7: 4 | AH7: 8 | AI7: 16 | AJ7: 32
P8: 1 | Q8: =IF(P8>0,IF(MOD($AE$16,$P8)=0,1,""),"") -> 1 | R8: =IF($P8*R$7>0,IF(MOD($AE$16,$P8*R$7)=0,$AE$16/($P8*R$7),""),"") -> 64 | S8: =IF($P8*S$7>0,IF(MOD($AE$16,$P8*S$7)=0,$AE$16/($P8*S$7),""),"") -> 32 | T8: 16 | U8: 8 | V8: 4 | Y8: 1 | Z8: 9.602527731 | AA8: 4.575021653 | AB8: 165.0499475 | AD8: =IF(P8<>"",P8,"") -> 1 | AE8: =IF(Q8<>"",$AD8,"") -> 1 | AF8: =IF(R8<>"",$AD8,"") -> 1 | AG8: 1 | AH8: 1 | AI8: 1 | AJ8: 1 | AN8: 2) Enter Ratios and number of increments (Ni) in Table 2
P9: 2 | Q9: =IF(P9>0,IF(MOD($AE$16,$P9)=0,1,""),"") -> 1 | R9: =IF($P9*R$7>0,IF(MOD($AE$16,$P9*R$7)=0,$AE$16/($P9*R$7),""),"") -> 32 | S9: 16 | T9: 8 | U9: 4 | V9: 2 | Y9: 2 | Z9: 9.892067879 | AA9: 3.673441848 | AB9: 118.8323995 | AD9: =IF(P9<>"",P9,"") -> 2 | AE9: =IF(Q9<>"",$AD9,"") -> 2 | AF9: 2 | AG9: 2 | AH9: 2 | AI9: 2 | AJ9: 2 | AO9: Ratio = 0 means Point selection, results marked PS
P10: 4 | Q10: 1 | R10: 16 | S10: 8 | T10: 4 | U10: 2 | V10: 1 | Y10: 3 | Z10: 7.689142471 | AA10: 4.965477927 | AB10: 117.0652379 | AD10: 4 | AE10: 4 | AF10: 4 | AG10: 4 | AH10: 4 | AI10: 4 | AJ10: 4
P11: 8 | Q11: 1 | R11: 8 | S11: 4 | T11: 2 | U11: 1 | Y11: 4 | Z11: 9.293271682 | AA11: 4.875082398 | AB11: 85.71182191 | AD11: 8 | AE11: 8 | AF11: 8 | AG11: 8 | AH11: 8 | AI11: 8 | AN11: 3) Enter number of runs for Monte Carlo simulation in Table 3
P12: 16 | Q12: 1 | R12: 4 | S12: 2 | T12: 1 | Y12: 5 | Z12: 10.62824927 | AA12: 5.33714045 | AB12: 59.59297648 | AD12: 16 | AE12: 16 | AF12: 16 | AG12: 16 | AH12: 16 | AO12: MC = 4000 is a reasonable number
P13: 32 | Q13: 1 | R13: 2 | S13: 1 | Y13: 6 | Z13: 8.549518998 | AA13: 7.042230617 | AB13: 52.16842887 | AD13: 32 | AE13: 32 | AF13: 32 | AG13: 32
P14: 64 | Q14: 1 | R14: 1 | Y14: 7 | Z14: 10.38383942 | AA14: 6.496923006 | AB14: 32.86295181 | AD14: 64 | AE14: 64 | AF14: 64 | AN14: 4) Press the button UPDATE SU
Y15: 8 | Z15: 9.855861906 | AA15: 8.818809366 | AB15: 20.50478995 | AO15: The progress can be seen in the lower left corner of the screen
Y16: 9 | Z16: 7.524217635 | AA16: 8.417111803 | AB16: 16.76151667 | AD16: imx | AE16: =COUNT(Z8:Z647) -> 128 | AO16: If it takes too ling time press ESC and the End
U17: In % of RSD(aL)? | Y17: 10 | Z17: 9.275715308 | AA17: 9.562320692 | AB17: 5.683143342 | AD17: Runs | AE17: =COUNT(AE8:AJ15) -> 32
U18: Y/N | V18: n | Y18: 11 | Z18: 9.301310655 | AA18: 9.851244461 | AB18: 21.10605445 | AN18: 5) Analyse the results
U19: Divisor | V19: =IF(V18="Y",N1/100,1) -> 1 | Y19: 12 | Z19: 9.193974763 | AA19: 11.9511474 | AB19: 5.817149289 | AO19: Results can be shown as RSD % or in % of RSD(aL) (Cell V18)
P20: =IF(L1<>0,IF(AVERAGE(Z8:Z263)<>L1,"New data: Please Update SU",""),"") ->  | Y20: 13 | Z20: 8.689581937 | AA20: 11.88469218 | AB20: 36.14628185
Y21: 14 | Z21: 10.05741018 | AA21: 12.33665772 | AB21: 20.82760955 | AN21: 6) Save the sheet and/or change input and try again - or open a new sheet
Y22: 15 | Z22: 12.04030943 | AA22: 13.20580244 | AB22: 22.37655207
P23: Table 4 | Q23: Relative standard deviation of sampling | Y23: 16 | Z23: 9.259091316 | AA23: 13.73883697 | AB23: 15.56595397 | AD23: 2022-02-07T14:37:44 | AE23: 27 | AF23: 128 | AG23: 11.06185521 | AH23: 31.37614683 | AN23: 7) To create a new sheet press the NEW SHEET button
P24: Ratio | Q24: j | R24: Ni | S24: Syst % | T24: Strat % | U24: Rand % | V24: s1/sq(Ni) | W24: s1/Ni | Y24: 17 | Z24: 8.808044853 | AA24: 13.71213294 | AB24: 2.085117669 | AD24: 32 | AE24: 32 | AO24: The new sheet will contain a copy of data in Table 1 to 3
P25: =IF(AD25<>"",AD25,"") -> PS | Q25: 128 | R25: 1 | S25: =IF(AG25<>"",AG25/$V$19,"") -> 31.49943276 | T25: 31.49943276 | U25: 31.49943276 | V25: =IF(R25<>"",S$25/SQRT(R25),"") -> 31.49943276 | W25: =IF(R25<>"",S$25/R25,"") -> 31.49943276 | Y25: 18 | Z25: 10.09530606 | AA25: 13.93652183 | AB25: 1.785885337 | AD25: PS | AE25: 128 | AF25: 1 | AG25: 31.49943276 | AH25: 31.49943276 | AI25: 31.49943276
P26: PS | Q26: 64 | R26: 2 | S26: 19.58965421 | T26: 20.55678457 | U26: 22.19427189 | V26: 22.2734625 | W26: 15.74971638 | Y26: 19 | Z26: 11.39930837 | AA26: 14.08608071 | AB26: 16.90878271 | AD26: PS | AE26: 64 | AF26: 2 | AG26: 19.58965421 | AH26: 20.55678457 | AI26: 22.19427189 | AN26: 8) To make a Discrete Fourier Analysis of the data press DFT
P27: PS | Q27: 32 | R27: 4 | S27: 12.31321197 | T27: 13.2837828 | U27: 15.19724621 | V27: 15.74971638 | W27: 7.874858189 | Y27: 20 | Z27: 10.0368315 | AA27: 14.62564457 | AB27: 25.76165679 | AD27: PS | AE27: 32 | AF27: 4 | AG27: 12.31321197 | AH27: 13.2837828 | AI27: 15.19724621 | AO27: The cyclic components of the data can be analysed
P28: PS | Q28: 16 | R28: 8 | S28: 5.980391696 | T28: 7.902515728 | U28: 11.01211877 | V28: 11.13673125 | W28: 3.937429094 | Y28: 21 | Z28: 9.853069621 | AA28: 15.04542387 | AB28: 11.66395203 | AD28: PS | AE28: 16 | AF28: 8 | AG28: 5.980391696 | AH28: 7.902515728 | AI28: 11.01211877 | AO28: DFT-filtering can be used to attenuate or amplify cyclic variations
P29: PS | Q29: 8 | R29: 16 | S29: 3.185304548 | T29: 4.858834581 | U29: 7.685276078 | V29: 7.874858189 | W29: 1.968714547 | Y29: 22 | Z29: 11.34068382 | AA29: 15.00878763 | AB29: 17.86927247 | AD29: PS | AE29: 8 | AF29: 16 | AG29: 3.185304548 | AH29: 4.858834581 | AI29: 7.685276078
P30: PS | Q30: 4 | R30: 32 | S30: 1.16676579 | T30: 3.312769979 | U30: 5.563770868 | V30: 5.568365626 | W30: 0.9843572736 | Y30: 23 | Z30: 10.40332504 | AA30: 15.85156247 | AB30: 23.21550332 | AD30: PS | AE30: 4 | AF30: 32 | AG30: 1.16676579 | AH30: 3.312769979 | AI30: 5.563770868 | AN30: 9) Troubleshooting
P31: PS | Q31: 2 | R31: 64 | S31: 1.456667375 | T31: 2.438622386 | U31: 3.943171384 | V31: 3.937429094 | W31: 0.4921786368 | Y31: 24 | Z31: 10.29783271 | AA31: 15.37212984 | AB31: 26.50640561 | AD31: PS | AE31: 2 | AF31: 64 | AG31: 1.456667375 | AH31: 2.438622386 | AI31: 3.943171384 | AO31: If you get a runtime error in the macros:
Y32: 25 | Z32: 11.49872553 | AA32: 16.30896499 | AB32: 22.26735241 | AO32: Press Debug in the pop up window
Y33: 26 | Z33: 9.653336061 | AA33: 15.7770248 | AB33: 13.16987005 | AO33: Look at the code and try to understand the problem
P34: Ratio | Q34: j | R34: Ni | S34: Syst % | T34: Strat % | U34: Rand % | V34: s1/sq(Ni) | W34: s1/Ni | Y34: 27 | Z34: 8.061007983 | AA34: 16.16697189 | AB34: 35.73608206 | AO34: Press the reset button (blue square in the tools) and try to fix the
P35: =IF(AD35<>"",AD35,"") -> 2 | Q35: =IF(AE35<>"",AE35,"") -> 128 | R35: 1 | S35: =IF(AG35<>"",AG35/$V$19,"") -> 10.86469495 | T35: 10.86469495 | U35: 10.86469495 | V35: =IF(R35<>"",S$35/SQRT(R35),"") -> 10.86469495 | W35: =IF(R35<>"",S$35/R35,"") -> 10.86469495 | Y35: 28 | Z35: 8.102706922 | AA35: 16.16061124 | AB35: 28.58446475 | AD35: 2 | AE35: 128 | AF35: 1 | AG35: 10.86469495 | AH35: 10.86469495 | AI35: 10.86469495 | AO35: error or go to the spreadsheet and fix the error
P36: =IF(AD36<>"",AD36,"") -> 2 | Q36: 64 | R36: 2 | S36: 7.708311574 | T36: 9.411246776 | U36: 9.099645467 | V36: =IF(R36<>"",S$35/SQRT(R36),"") -> 7.682499475 | W36: =IF(R36<>"",S$35/R36,"") -> 5.432347475 | Y36: 29 | Z36: 10.22266983 | AA36: 16.39750556 | AB36: 12.91801819 | AD36: 2 | AE36: 64 | AF36: 2 | AG36: 7.708311574 | AH36: 9.411246776 | AI36: 9.099645467
P37: 2 | Q37: 32 | R37: 4 | S37: 5.576548761 | T37: 7.130719579 | U37: 7.251246174 | V37: 5.432347475 | W37: 2.716173738 | Y37: 30 | Z37: 9.583941178 | AA37: 17.1848006 | AB37: 13.65032148 | AD37: 2 | AE37: 32 | AF37: 4 | AG37: 5.576548761 | AH37: 7.130719579 | AI37: 7.251246174
P38: 2 | Q38: 16 | R38: 8 | S38: 1.563746236 | T38: 4.175527775 | U38: 5.02998669 | V38: 3.841249738 | W38: 1.358086869 | Y38: 31 | Z38: 10.02856762 | AA38: 16.8247006 | AB38: 13.96343411 | AD38: 2 | AE38: 16 | AF38: 8 | AG38: 1.563746236 | AH38: 4.175527775 | AI38: 5.02998669
P39: 2 | Q39: 8 | R39: 16 | S39: 1.250067228 | T39: 2.156018492 | U39: 3.832833741 | V39: 2.716173738 | W39: 0.6790434344 | Y39: 32 | Z39: 9.964806045 | AA39: 16.95755682 | AB39: 4.856464232 | AD39: 2 | AE39: 8 | AF39: 16 | AG39: 1.250067228 | AH39: 2.156018492 | AI39: 3.832833741
P40: 2 | Q40: 4 | R40: 32 | S40: 0.3960514646 | T40: 1.551686189 | U40: 3.029391551 | V40: 1.920624869 | W40: 0.3395217172 | Y40: 33 | Z40: 9.88637724 | AA40: 16.67625304 | AB40: 17.08099138 | AD40: 2 | AE40: 4 | AF40: 32 | AG40: 0.3960514646 | AH40: 1.551686189 | AI40: 3.029391551
P41: 2 | Q41: 2 | R41: 64 | S41: 1.030019379 | T41: 1.702613401 | U41: 2.765580895 | V41: 1.358086869 | W41: 0.1697608586 | Y41: 34 | Z41: 10.64006263 | AA41: 17.72473273 | AB41: 11.80108434 | AD41: 2 | AE41: 2 | AF41: 64 | AG41: 1.030019379 | AH41: 1.702613401 | AI41: 2.765580895
P42: =R15 ->  | Q42: =AF15 ->  | Y42: 35 | Z42: 10.89148622 | AA42: 17.85304532 | AB42: 26.67166125
Y43: 36 | Z43: 10.87125043 | AA43: 17.77256147 | AB43: 32.53618288
P44: Ratio | Q44: j | R44: Ni | S44: Syst % | T44: Strat % | U44: Rand % | V44: s1/sq(Ni) | W44: s1/Ni | Y44: 37 | Z44: 9.720487781 | AA44: 17.81730293 | AB44: 21.04881243
P45: =IF(AD45<>"",AD45,"") -> 4 | Q45: =IF(AE45<>"",AE45,"") -> 128 | R45: 1 | S45: =IF(AG45<>"",AG45/$V$19,"") -> 17.17653636 | T45: 17.17653636 | U45: 17.17653636 | V45: =IF(R45<>"",S$45/SQRT(R45),"") -> 17.17653636 | W45: =IF(R45<>"",S$45/R45,"") -> 17.17653636 | Y45: 38 | Z45: 10.34312104 | AA45: 17.47529834 | AB45: 26.99969629 | AD45: 4 | AE45: 128 | AF45: 1 | AG45: 17.17653636 | AH45: 17.17653636 | AI45: 17.17653636
P46: =IF(AD46<>"",AD46,"") -> 4 | Q46: 64 | R46: 2 | S46: 12.22458234 | T46: 13.80947273 | U46: 13.90723347 | V46: =IF(R46<>"",S$45/SQRT(R46),"") -> 12.14564534 | W46: =IF(R46<>"",S$45/R46,"") -> 8.588268179 | Y46: 39 | Z46: 10.2862515 | AA46: 18.43380099 | AB46: 26.10308293 | AD46: 4 | AE46: 64 | AF46: 2 | AG46: 12.22458234 | AH46: 13.80947273 | AI46: 13.90723347
P47: 4 | Q47: 32 | R47: 4 | S47: 8.035061527 | T47: 9.269073799 | U47: 10.26783923 | V47: 8.588268179 | W47: 4.29413409 | Y47: 40 | Z47: 10.41911313 | AA47: 18.22966108 | AB47: 14.48319994 | AD47: 4 | AE47: 32 | AF47: 4 | AG47: 8.035061527 | AH47: 9.269073799 | AI47: 10.26783923
P48: 4 | Q48: 16 | R48: 8 | S48: 2.519741016 | T48: 5.235568417 | U48: 7.738964517 | V48: 6.072822668 | W48: 2.147067045 | Y48: 41 | Z48: 9.611171104 | AA48: 18.85370432 | AB48: 14.80631537 | AD48: 4 | AE48: 16 | AF48: 8 | AG48: 2.519741016 | AH48: 5.235568417 | AI48: 7.738964517
P49: 4 | Q49: 8 | R49: 16 | S49: 1.805487414 | T49: 3.085811559 | U49: 5.806757203 | V49: 4.29413409 | W49: 1.073533522 | Y49: 42 | Z49: 9.346578666 | AA49: 19.06555528 | AB49: 4.719740875 | AD49: 4 | AE49: 8 | AF49: 16 | AG49: 1.805487414 | AH49: 3.085811559 | AI49: 5.806757203
P50: 4 | Q50: 4 | R50: 32 | S50: 1.010448814 | T50: 2.877866012 | U50: 4.781373006 | V50: 3.036411334 | W50: 0.5367667612 | Y50: 43 | Z50: 10.64446872 | AA50: 19.19903524 | AB50: 6.730581979 | AD50: 4 | AE50: 4 | AF50: 32 | AG50: 1.010448814 | AH50: 2.877866012 | AI50: 4.781373006
Y51: 44 | Z51: 10.34298223 | AA51: 20.23071594 | AB51: 5.565633653
Y52: 45 | Z52: 12.12847495 | AA52: 20.40630091 | AB52: 17.40882989
Y53: 46 | Z53: 9.687753576 | AA53: 20.24341869 | AB53: 9.838511346
P54: Ratio | Q54: j | R54: Ni | S54: Syst % | T54: Strat % | U54: Rand % | V54: s1/sq(Ni) | W54: s1/Ni | Y54: 47 | Z54: 10.89652038 | AA54: 20.69701211 | AB54: 25.35668794
P55: =IF(AD55<>"",AD55,"") -> 8 | Q55: =IF(AE55<>"",AE55,"") -> 128 | R55: 1 | S55: =IF(AG55<>"",AG55/$V$19,"") -> 22.41940733 | T55: 22.41940733 | U55: 22.41940733 | V55: =IF(R55<>"",S$55/SQRT(R55),"") -> 22.41940733 | W55: =IF(R55<>"",S$55/R55,"") -> 22.41940733 | Y55: 48 | Z55: 12.69349029 | AA55: 21.10934163 | AB55: 21.43897627 | AD55: 8 | AE55: 128 | AF55: 1 | AG55: 22.41940733 | AH55: 22.41940733 | AI55: 22.41940733
P56: =IF(AD56<>"",AD56,"") -> 8 | Q56: 64 | R56: 2 | S56: 14.75584392 | T56: 16.36850619 | U56: 16.84013877 | V56: =IF(R56<>"",S$55/SQRT(R56),"") -> 15.85291495 | W56: =IF(R56<>"",S$55/R56,"") -> 11.20970366 | Y56: 49 | Z56: 10.38484788 | AA56: 22.0030091 | AB56: 21.24076641 | AD56: 8 | AE56: 64 | AF56: 2 | AG56: 14.75584392 | AH56: 16.36850619 | AI56: 16.84013877
P57: 8 | Q57: 32 | R57: 4 | S57: 8.979187293 | T57: 10.33281139 | U57: 12.05734814 | V57: 11.20970366 | W57: 5.604851832 | Y57: 50 | Z57: 4.781050833 | AA57: 22.00182922 | AB57: 12.66181141 | AD57: 8 | AE57: 32 | AF57: 4 | AG57: 8.979187293 | AH57: 10.33281139 | AI57: 12.05734814
P58: 8 | Q58: 16 | R58: 8 | S58: 3.691173874 | T58: 5.920729052 | U58: 9.233493852 | V58: 7.926457476 | W58: 2.802425916 | Y58: 51 | Z58: 16.67828731 | AA58: 21.66132455 | AB58: 28.34487656 | AD58: 8 | AE58: 16 | AF58: 8 | AG58: 3.691173874 | AH58: 5.920729052 | AI58: 9.233493852
P59: 8 | Q59: 8 | R59: 16 | S59: 2.979579573 | T59: 4.572841047 | U59: 7.47642881 | V59: 5.604851832 | W59: 1.401212958 | Y59: 52 | Z59: 14.50429284 | AA59: 22.66474193 | AB59: 10.47550142 | AD59: 8 | AE59: 8 | AF59: 16 | AG59: 2.979579573 | AH59: 4.572841047 | AI59: 7.47642881
Y60: 53 | Z60: 21.08455205 | AA60: 21.70293076 | AB60: 34.451715
Y61: 54 | Z61: 14.97901219 | AA61: 22.66884668 | AB61: 39.12302247
Y62: 55 | Z62: 21.0037117 | AA62: 21.31352525 | AB62: 31.29155857
Y63: 56 | Z63: 15.84145501 | AA63: 21.96506398 | AB63: 32.2413874
P64: Ratio | Q64: j | R64: Ni | S64: Syst % | T64: Strat % | U64: Rand % | V64: s1/sq(Ni) | W64: s1/Ni | Y64: 57 | Z64: 23.57682421 | AA64: 20.09001247 | AB64: 32.82559231
P65: =IF(AD65<>"",AD65,"") -> 16 | Q65: =IF(AE65<>"",AE65,"") -> 128 | R65: 1 | S65: =IF(AG65<>"",AG65/$V$19,"") -> 25.39418556 | T65: 25.39418556 | U65: 25.39418556 | V65: =IF(R65<>"",S$65/SQRT(R65),"") -> 25.39418556 | W65: =IF(R65<>"",S$65/R65,"") -> 25.39418556 | Y65: 58 | Z65: 25.1292701 | AA65: 18.53378258 | AB65: 47.22498528 | AD65: 16 | AE65: 128 | AF65: 1 | AG65: 25.39418556 | AH65: 25.39418556 | AI65: 25.39418556
P66: =IF(AD66<>"",AD66,"") -> 16 | Q66: 64 | R66: 2 | S66: 15.81921271 | T66: 17.19464207 | U66: 18.28085528 | V66: =IF(R66<>"",S$65/SQRT(R66),"") -> 17.95640081 | W66: =IF(R66<>"",S$65/R66,"") -> 12.69709278 | Y66: 59 | Z66: 17.00305978 | AA66: 19.03634075 | AB66: 32.58689008 | AD66: 16 | AE66: 64 | AF66: 2 | AG66: 15.81921271 | AH66: 17.19464207 | AI66: 18.28085528
P67: 16 | Q67: 32 | R67: 4 | S67: 10.17009602 | T67: 11.15463342 | U67: 13.9551145 | V67: 12.69709278 | W67: 6.348546391 | Y67: 60 | Z67: 18.99613846 | AA67: 17.73532923 | AB67: 32.42895076 | AD67: 16 | AE67: 32 | AF67: 4 | AG67: 10.17009602 | AH67: 11.15463342 | AI67: 13.9551145
P68: 16 | Q68: 16 | R68: 8 | S68: 5.790489361 | T68: 7.861368954 | U68: 10.68551235 | V68: 8.978200407 | W68: 3.174273195 | Y68: 61 | Z68: 14.24029214 | AA68: 18.90545873 | AB68: 18.38086053 | AD68: 16 | AE68: 16 | AF68: 8 | AG68: 5.790489361 | AH68: 7.861368954 | AI68: 10.68551235
Y69: 62 | Z69: 28.97219247 | AA69: 15.42898632 | AB69: 10.61656972
Y70: 63 | Z70: 15.32644954 | AA70: 16.42052054 | AB70: 13.8050651
Y71: 64 | Z71: 19.48895592 | AA71: 14.80405511 | AB71: 10.3126039
Y72: 65 | Z72: 19.01507751
Y73: 66 | Z73: 12.32196915
P74: Ratio | Q74: j | R74: Ni | S74: Syst % | T74: Strat % | U74: Rand % | V74: s1/sq(Ni) | W74: s1/Ni | Y74: 67 | Z74: 13.90723729
P75: =IF(AD75<>"",AD75,"") -> 32 | Q75: =IF(AE75<>"",AE75,"") -> 128 | R75: 1 | S75: =IF(AG75<>"",AG75/$V$19,"") -> 26.8223755 | T75: 26.8223755 | U75: 26.8223755 | V75: =IF(R75<>"",S$75/SQRT(R75),"") -> 26.8223755 | W75: =IF(R75<>"",S$75/R75,"") -> 26.8223755 | Y75: 68 | Z75: 10.46008252 | AD75: 32 | AE75: 128 | AF75: 1 | AG75: 26.8223755 | AH75: 26.8223755 | AI75: 26.8223755
P76: =IF(AD76<>"",AD76,"") -> 32 | Q76: 64 | R76: 2 | S76: 16.8940566 | T76: 18.24410323 | U76: 19.76392817 | V76: =IF(R76<>"",S$75/SQRT(R76),"") -> 18.9662836 | W76: =IF(R76<>"",S$75/R76,"") -> 13.41118775 | Y76: 69 | Z76: 12.53987122 | AD76: 32 | AE76: 64 | AF76: 2 | AG76: 16.8940566 | AH76: 18.24410323 | AI76: 19.76392817
P77: 32 | Q77: 32 | R77: 4 | S77: 12.119291 | T77: 13.20833765 | U77: 15.64827312 | V77: 13.41118775 | W77: 6.705593875 | Y77: 70 | Z77: 11.66725891 | AD77: 32 | AE77: 32 | AF77: 4 | AG77: 12.119291 | AH77: 13.20833765 | AI77: 15.64827312
Y78: 71 | Z78: 10.75018231
Y79: 72 | Z79: 12.76402412
Y80: 73 | Z80: 12.84418729
Y81: 74 | Z81: 8.555514694
Y82: 75 | Z82: 10.0151865
Y83: 76 | Z83: 10.01261764
Y84: 77 | Z84: 10.93520581 | AD84: Lot variance
Y85: 78 | Z85: 9.131904631 | AD85: x | AE85: Var
Y86: 79 | Z86: 9.411551598 | AD86: 0 | AE86: =(AH23*AG23/100)^2 -> 12.0463411
Y87: 80 | Z87: 10.68736804 | AD87: =AE16/2 -> 64 | AE87: =AE86 -> 12.0463411
Y88: 81 | Z88: 10.27482862
Y89: 82 | Z89: 9.107153502 | AD89: Sampling frequencies
Y90: 83 | Z90: 10.77043963 | AD90: Ni | AE90: Lag | AF90: V(j) | AG90: DFT
Y91: 84 | Z91: 10.65010312 | AD91: =IF(R25="",0,R25) -> 1 | AE91: =IF(Q25="",0,Q25) -> 128 | AF91: =IF(AE91="",NA(),VLOOKUP(AE91,Y$8:AA$135,3)) -> 0 | AG91: =IF(AD91="",NA(),VLOOKUP(AD91,Y$8:AB$135,4)) -> 165.0499475
Y92: 85 | Z92: 9.253319466 | AD92: =IF(R26="",0,R26) -> 2 | AE92: =IF(Q26="",0,Q26) -> 64 | AF92: =IF(AE92="",NA(),VLOOKUP(AE92,Y$8:AA$135,3)) -> 14.80405511 | AG92: =IF(AD92="",NA(),VLOOKUP(AD92,Y$8:AB$135,4)) -> 118.8323995
Y93: 86 | Z93: 9.809468545 | AD93: 4 | AE93: 32 | AF93: 16.95755682 | AG93: 85.71182191
Y94: 87 | Z94: 7.85395811 | AD94: 8 | AE94: 16 | AF94: 13.73883697 | AG94: 20.50478995
Y95: 88 | Z95: 9.894071824 | AD95: 16 | AE95: 8 | AF95: 8.818809366 | AG95: 15.56595397
Y96: 89 | Z96: 11.13597765 | AD96: 32 | AE96: 4 | AF96: 4.875082398 | AG96: 4.856464232
Y97: 90 | Z97: 11.74596514 | AD97: 64 | AE97: 2 | AF97: 3.673441848 | AG97: 10.3126039
Y98: 91 | Z98: 11.4939303 | AD98: 0 | AE98: 0
Y99: 92 | Z99: 9.031371753
Y100: 93 | Z100: 11.06673831
Y101: 94 | Z101: 9.785214698
Y102: 95 | Z102: 9.069776912
Y103: 96 | Z103: 9.823748871
Y104: 97 | Z104: 8.970152675
Y105: 98 | Z105: 8.79562428
Y106: 99 | Z106: 9.765242814
Y107: 100 | Z107: 10.82010494
Y108: 101 | Z108: 9.246010662
Y109: 102 | Z109: 10.7274469
Y110: 103 | Z110: 11.4568954
Y111: 104 | Z111: 11.97575648
Y112: 105 | Z112: 10.32755113
Y113: 106 | Z113: 9.428252062
Y114: 107 | Z114: 9.280361559
Y115: 108 | Z115: 9.920040241
Y116: 109 | Z116: 7.567006411
Y117: 110 | Z117: 10.40746529
Y118: 111 | Z118: 9.918850022
Y119: 112 | Z119: 8.135837868
Y120: 113 | Z120: 11.02431287
Y121: 114 | Z121: 8.969994021
Y122: 115 | Z122: 10.5927813
Y123: 116 | Z123: 9.848703407
Y124: 117 | Z124: 10.37793656
Y125: 118 | Z125: 9.990162577
Y126: 119 | Z126: 8.747907534
Y127: 120 | Z127: 9.232402794
Y128: 121 | Z128: 7.730415614
Y129: 122 | Z129: 9.565092438
Y130: 123 | Z130: 9.973505044
Y131: 124 | Z131: 10.54287367
Y132: 125 | Z132: 9.216750166
Y133: 126 | Z133: 9.103490713
Y134: 127 | Z134: 9.084726967
Y135: 128 | Z135: 8.402270261

Sheet SU
A1: =DFT!A1 -> SU_3.0 | C1: Run at: | D1: =IF(AD23<>"",AD23,"Please update SU") -> Please update SU | F1: Runtime: | G1: =AE23 -> 0 | H1: s | I1: Nr: | J1: =AF23 -> 0 | K1: Mean: | L1: =AG23 -> 0 | M1: RSD % | N1: =AH23 -> 0 | P1: =DFT!P1 -> Author: Bo Svensmark, svensmark@plen.ku.dk, Analytical Chemistry, ECP, PLEN, University of Copenhagen, 2022 | AM1: Manual:
A3: Title: | T3: Table 3 | AN3: Do only enter values in the WHITE cells!
A4: Comments: | T4: Monte Carlo | V4: 4000
P5: Table 2 | T5: N | V5: =AE16 -> 128 | Y5: Table 1 | AD5: INPUT/OUTPUT for Macros - don't change! | AN5: 1) Enter the input data, x and f(x), in Table 1
I6: Manual for use in cell AM1 | P6: Number of | Q6: Ratio | Y6: INPUT | AD6: Number of | AE6: Ratio | AO6: Max x = 1280
P7: increments | Q7: 0 | R7: 2 | S7: 4 | T7: 8 | U7: 16 | V7: 32 | Y7: x | Z7: f(x) | AA7: Variogram | AB7: DFT | AD7: increments | AE7: =IF(Q7<>"",Q7,"") -> 0 | AF7: 2 | AG7: 4 | AH7: 8 | AI7: 16 | AJ7: 32
P8: 1 | Q8: =IF(P8>0,IF(MOD($AE$16,$P8)=0,1,""),"") -> 1 | R8: =IF($P8*R$7>0,IF(MOD($AE$16,$P8*R$7)=0,$AE$16/($P8*R$7),""),"") -> 64 | S8: =IF($P8*S$7>0,IF(MOD($AE$16,$P8*S$7)=0,$AE$16/($P8*S$7),""),"") -> 32 | T8: 16 | U8: 8 | V8: 4 | Y8: 1 | Z8: 9.602527731 | AB8: 165.0499475 | AD8: =IF(P8<>"",P8,"") -> 1 | AE8: =IF(Q8<>"",$AD8,"") -> 1 | AF8: =IF(R8<>"",$AD8,"") -> 1 | AG8: 1 | AH8: 1 | AI8: 1 | AJ8: 1 | AN8: 2) Enter Ratios and number of increments (Ni) in Table 2
P9: 2 | Q9: =IF(P9>0,IF(MOD($AE$16,$P9)=0,1,""),"") -> 1 | R9: =IF($P9*R$7>0,IF(MOD($AE$16,$P9*R$7)=0,$AE$16/($P9*R$7),""),"") -> 32 | S9: 16 | T9: 8 | U9: 4 | V9: 2 | Y9: 2 | Z9: 9.892067879 | AB9: 118.8323995 | AD9: =IF(P9<>"",P9,"") -> 2 | AE9: =IF(Q9<>"",$AD9,"") -> 2 | AF9: 2 | AG9: 2 | AH9: 2 | AI9: 2 | AJ9: 2 | AO9: Ratio = 0 means Point selection, results marked PS
P10: 4 | Q10: 1 | R10: 16 | S10: 8 | T10: 4 | U10: 2 | V10: 1 | Y10: 3 | Z10: 7.689142471 | AB10: 117.0652379 | AD10: 4 | AE10: 4 | AF10: 4 | AG10: 4 | AH10: 4 | AI10: 4 | AJ10: 4
P11: 8 | Q11: 1 | R11: 8 | S11: 4 | T11: 2 | U11: 1 | Y11: 4 | Z11: 9.293271682 | AB11: 85.71182191 | AD11: 8 | AE11: 8 | AF11: 8 | AG11: 8 | AH11: 8 | AI11: 8 | AN11: 3) Enter number of runs for Monte Carlo simulation in Table 3
P12: 16 | Q12: 1 | R12: 4 | S12: 2 | T12: 1 | Y12: 5 | Z12: 10.62824927 | AB12: 59.59297648 | AD12: 16 | AE12: 16 | AF12: 16 | AG12: 16 | AH12: 16 | AO12: MC = 4000 is a reasonable number
P13: 32 | Q13: 1 | R13: 2 | S13: 1 | Y13: 6 | Z13: 8.549518998 | AB13: 52.16842887 | AD13: 32 | AE13: 32 | AF13: 32 | AG13: 32
P14: 64 | Q14: 1 | R14: 1 | Y14: 7 | Z14: 10.38383942 | AB14: 32.86295181 | AD14: 64 | AE14: 64 | AF14: 64 | AN14: 4) Press the button UPDATE SU
Y15: 8 | Z15: 9.855861906 | AB15: 20.50478995 | AO15: The progress can be seen in the lower left corner of the screen
Y16: 9 | Z16: 7.524217635 | AB16: 16.76151667 | AD16: imx | AE16: =COUNT(Z8:Z647) -> 128 | AO16: If it takes too ling time press ESC and the End
U17: In % of RSD(aL)? | Y17: 10 | Z17: 9.275715308 | AB17: 5.683143342 | AD17: Runs | AE17: =COUNT(AE8:AJ15) -> 32
U18: Y/N | V18: n | Y18: 11 | Z18: 9.301310655 | AB18: 21.10605445 | AN18: 5) Analyse the results
U19: Divisor | V19: =IF(V18="Y",N1/100,1) -> 1 | Y19: 12 | Z19: 9.193974763 | AB19: 5.817149289 | AO19: Results can be shown as RSD % or in % of RSD(aL) (Cell V18)
P20: =IF(L1<>0,IF(AVERAGE(Z8:Z263)<>L1,"New data: Please Update SU",""),"") ->  | Y20: 13 | Z20: 8.689581937 | AB20: 36.14628185
Y21: 14 | Z21: 10.05741018 | AB21: 20.82760955 | AN21: 6) Save the sheet and/or change input and try again - or open a new sheet
Y22: 15 | Z22: 12.04030943 | AB22: 22.37655207
P23: Table 4 | Q23: Relative standard deviation of sampling | Y23: 16 | Z23: 9.259091316 | AB23: 15.56595397 | AN23: 7) To create a new sheet press the NEW SHEET button
P24: Ratio | Q24: j | R24: Ni | S24: Syst % | T24: Strat % | U24: Rand % | V24: s1/sq(Ni) | W24: s1/Ni | Y24: 17 | Z24: 8.808044853 | AB24: 2.085117669 | AO24: The new sheet will contain a copy of data in Table 1 to 3
P25: =IF(AD25<>"",AD25,"") ->  | S25: =IF(AG25<>"",AG25/$V$19,"") ->  | V25: =IF(R25<>"",S$25/SQRT(R25),"") ->  | W25: =IF(R25<>"",S$25/R25,"") ->  | Y25: 18 | Z25: 10.09530606 | AB25: 1.785885337
Y26: 19 | Z26: 11.39930837 | AB26: 16.90878271 | AN26: 8) To make a Discrete Fourier Analysis of the data press DFT
Y27: 20 | Z27: 10.0368315 | AB27: 25.76165679 | AO27: The cyclic components of the data can be analysed
Y28: 21 | Z28: 9.853069621 | AB28: 11.66395203 | AO28: DFT-filtering can be used to attenuate or amplify cyclic variations
Y29: 22 | Z29: 11.34068382 | AB29: 17.86927247
Y30: 23 | Z30: 10.40332504 | AB30: 23.21550332 | AN30: 9) Troubleshooting
Y31: 24 | Z31: 10.29783271 | AB31: 26.50640561 | AO31: If you get a runtime error in the macros:
Y32: 25 | Z32: 11.49872553 | AB32: 22.26735241 | AO32: Press Debug in the pop up window
Y33: 26 | Z33: 9.653336061 | AB33: 13.16987005 | AO33: Look at the code and try to understand the problem
P34: Ratio | Q34: j | R34: Ni | S34: Syst % | T34: Strat % | U34: Rand % | V34: s1/sq(Ni) | W34: s1/Ni | Y34: 27 | Z34: 8.061007983 | AB34: 35.73608206 | AO34: Press the reset button (blue square in the tools) and try to fix the
P35: =IF(AD35<>"",AD35,"") ->  | Q35: =IF(AE35<>"",AE35,"") ->  | S35: =IF(AG35<>"",AG35/$V$19,"") ->  | V35: =IF(R35<>"",S$35/SQRT(R35),"") ->  | W35: =IF(R35<>"",S$35/R35,"") ->  | Y35: 28 | Z35: 8.102706922 | AB35: 28.58446475 | AO35: error or go to the spreadsheet and fix the error
P36: =IF(AD36<>"",AD36,"") ->  | V36: =IF(R36<>"",S$35/SQRT(R36),"") ->  | W36: =IF(R36<>"",S$35/R36,"") ->  | Y36: 29 | Z36: 10.22266983 | AB36: 12.91801819
Y37: 30 | Z37: 9.583941178 | AB37: 13.65032148
Y38: 31 | Z38: 10.02856762 | AB38: 13.96343411
Y39: 32 | Z39: 9.964806045 | AB39: 4.856464232
Y40: 33 | Z40: 9.88637724 | AB40: 17.08099138
Y41: 34 | Z41: 10.64006263 | AB41: 11.80108434
P42: =R15 ->  | Q42: =AF15 ->  | Y42: 35 | Z42: 10.89148622 | AB42: 26.67166125
Y43: 36 | Z43: 10.87125043 | AB43: 32.53618288
P44: Ratio | Q44: j | R44: Ni | S44: Syst % | T44: Strat % | U44: Rand % | V44: s1/sq(Ni) | W44: s1/Ni | Y44: 37 | Z44: 9.720487781 | AB44: 21.04881243
P45: =IF(AD45<>"",AD45,"") ->  | Q45: =IF(AE45<>"",AE45,"") ->  | S45: =IF(AG45<>"",AG45/$V$19,"") ->  | V45: =IF(R45<>"",S$45/SQRT(R45),"") ->  | W45: =IF(R45<>"",S$45/R45,"") ->  | Y45: 38 | Z45: 10.34312104 | AB45: 26.99969629
P46: =IF(AD46<>"",AD46,"") ->  | V46: =IF(R46<>"",S$45/SQRT(R46),"") ->  | W46: =IF(R46<>"",S$45/R46,"") ->  | Y46: 39 | Z46: 10.2862515 | AB46: 26.10308293
Y47: 40 | Z47: 10.41911313 | AB47: 14.48319994
Y48: 41 | Z48: 9.611171104 | AB48: 14.80631537
Y49: 42 | Z49: 9.346578666 | AB49: 4.719740875
Y50: 43 | Z50: 10.64446872 | AB50: 6.730581979
Y51: 44 | Z51: 10.34298223 | AB51: 5.565633653
Y52: 45 | Z52: 12.12847495 | AB52: 17.40882989
Y53: 46 | Z53: 9.687753576 | AB53: 9.838511346
P54: Ratio | Q54: j | R54: Ni | S54: Syst % | T54: Strat % | U54: Rand % | V54: s1/sq(Ni) | W54: s1/Ni | Y54: 47 | Z54: 10.89652038 | AB54: 25.35668794
P55: =IF(AD55<>"",AD55,"") ->  | Q55: =IF(AE55<>"",AE55,"") ->  | S55: =IF(AG55<>"",AG55/$V$19,"") ->  | V55: =IF(R55<>"",S$55/SQRT(R55),"") ->  | W55: =IF(R55<>"",S$55/R55,"") ->  | Y55: 48 | Z55: 12.69349029 | AB55: 21.43897627
P56: =IF(AD56<>"",AD56,"") ->  | V56: =IF(R56<>"",S$55/SQRT(R56),"") ->  | W56: =IF(R56<>"",S$55/R56,"") ->  | Y56: 49 | Z56: 10.38484788 | AB56: 21.24076641
Y57: 50 | Z57: 4.781050833 | AB57: 12.66181141
Y58: 51 | Z58: 16.67828731 | AB58: 28.34487656
Y59: 52 | Z59: 14.50429284 | AB59: 10.47550142
Y60: 53 | Z60: 21.08455205 | AB60: 34.451715
Y61: 54 | Z61: 14.97901219 | AB61: 39.12302247
Y62: 55 | Z62: 21.0037117 | AB62: 31.29155857
Y63: 56 | Z63: 15.84145501 | AB63: 32.2413874
P64: Ratio | Q64: j | R64: Ni | S64: Syst % | T64: Strat % | U64: Rand % | V64: s1/sq(Ni) | W64: s1/Ni | Y64: 57 | Z64: 23.57682421 | AB64: 32.82559231
P65: =IF(AD65<>"",AD65,"") ->  | Q65: =IF(AE65<>"",AE65,"") ->  | S65: =IF(AG65<>"",AG65/$V$19,"") ->  | V65: =IF(R65<>"",S$65/SQRT(R65),"") ->  | W65: =IF(R65<>"",S$65/R65,"") ->  | Y65: 58 | Z65: 25.1292701 | AB65: 47.22498528
P66: =IF(AD66<>"",AD66,"") ->  | V66: =IF(R66<>"",S$65/SQRT(R66),"") ->  | W66: =IF(R66<>"",S$65/R66,"") ->  | Y66: 59 | Z66: 17.00305978 | AB66: 32.58689008
Y67: 60 | Z67: 18.99613846 | AB67: 32.42895076
Y68: 61 | Z68: 14.24029214 | AB68: 18.38086053
Y69: 62 | Z69: 28.97219247 | AB69: 10.61656972
Y70: 63 | Z70: 15.32644954 | AB70: 13.8050651
Y71: 64 | Z71: 19.48895592 | AB71: 10.3126039
Y72: 65 | Z72: 19.01507751
Y73: 66 | Z73: 12.32196915
P74: Ratio | Q74: j | R74: Ni | S74: Syst % | T74: Strat % | U74: Rand % | V74: s1/sq(Ni) | W74: s1/Ni | Y74: 67 | Z74: 13.90723729
P75: =IF(AD75<>"",AD75,"") ->  | Q75: =IF(AE75<>"",AE75,"") ->  | S75: =IF(AG75<>"",AG75/$V$19,"") ->  | V75: =IF(R75<>"",S$75/SQRT(R75),"") ->  | W75: =IF(R75<>"",S$75/R75,"") ->  | Y75: 68 | Z75: 10.46008252
P76: =IF(AD76<>"",AD76,"") ->  | V76: =IF(R76<>"",S$75/SQRT(R76),"") ->  | W76: =IF(R76<>"",S$75/R76,"") ->  | Y76: 69 | Z76: 12.53987122
Y77: 70 | Z77: 11.66725891
Y78: 71 | Z78: 10.75018231
Y79: 72 | Z79: 12.76402412
Y80: 73 | Z80: 12.84418729
Y81: 74 | Z81: 8.555514694
Y82: 75 | Z82: 10.0151865
Y83: 76 | Z83: 10.01261764
Y84: 77 | Z84: 10.93520581 | AD84: Lot variance
Y85: 78 | Z85: 9.131904631 | AD85: x | AE85: Var
Y86: 79 | Z86: 9.411551598 | AD86: 0 | AE86: =(AH23*AG23/100)^2 -> 0
Y87: 80 | Z87: 10.68736804 | AD87: =AE16/2 -> 64 | AE87: =AE86 -> 0
Y88: 81 | Z88: 10.27482862
Y89: 82 | Z89: 9.107153502 | AD89: Sampling frequencies
Y90: 83 | Z90: 10.77043963 | AD90: Ni | AE90: Lag | AF90: V(j) | AG90: DFT
Y91: 84 | Z91: 10.65010312 | AD91: =IF(R25="",0,R25) -> 0 | AE91: =IF(Q25="",0,Q25) -> 0 | AF91: =IF(AE91="",NA(),VLOOKUP(AE91,Y$8:AA$135,3)) ->  | AG91: =IF(AD91="",NA(),VLOOKUP(AD91,Y$8:AB$135,4)) -> 
Y92: 85 | Z92: 9.253319466 | AD92: =IF(R26="",0,R26) -> 0 | AE92: =IF(Q26="",0,Q26) -> 0 | AF92: =IF(AE92="",NA(),VLOOKUP(AE92,Y$8:AA$135,3)) ->  | AG92: =IF(AD92="",NA(),VLOOKUP(AD92,Y$8:AB$135,4)) -> 
Y93: 86 | Z93: 9.809468545 | AD93: 0 | AE93: 0
Y94: 87 | Z94: 7.85395811 | AD94: 0 | AE94: 0
Y95: 88 | Z95: 9.894071824 | AD95: 0 | AE95: 0
Y96: 89 | Z96: 11.13597765 | AD96: 0 | AE96: 0
Y97: 90 | Z97: 11.74596514 | AD97: 0 | AE97: 0
Y98: 91 | Z98: 11.4939303 | AD98: 0 | AE98: 0
Y99: 92 | Z99: 9.031371753
Y100: 93 | Z100: 11.06673831
Y101: 94 | Z101: 9.785214698
Y102: 95 | Z102: 9.069776912
Y103: 96 | Z103: 9.823748871
Y104: 97 | Z104: 8.970152675
Y105: 98 | Z105: 8.79562428
Y106: 99 | Z106: 9.765242814
Y107: 100 | Z107: 10.82010494
Y108: 101 | Z108: 9.246010662
Y109: 102 | Z109: 10.7274469
Y110: 103 | Z110: 11.4568954
Y111: 104 | Z111: 11.97575648
Y112: 105 | Z112: 10.32755113
Y113: 106 | Z113: 9.428252062
Y114: 107 | Z114: 9.280361559
Y115: 108 | Z115: 9.920040241
Y116: 109 | Z116: 7.567006411
Y117: 110 | Z117: 10.40746529
Y118: 111 | Z118: 9.918850022
Y119: 112 | Z119: 8.135837868
Y120: 113 | Z120: 11.02431287
Y121: 114 | Z121: 8.969994021
Y122: 115 | Z122: 10.5927813
Y123: 116 | Z123: 9.848703407
Y124: 117 | Z124: 10.37793656
Y125: 118 | Z125: 9.990162577
Y126: 119 | Z126: 8.747907534
Y127: 120 | Z127: 9.232402794
Y128: 121 | Z128: 7.730415614
Y129: 122 | Z129: 9.565092438
Y130: 123 | Z130: 9.973505044
Y131: 124 | Z131: 10.54287367
Y132: 125 | Z132: 9.216750166
Y133: 126 | Z133: 9.103490713
Y134: 127 | Z134: 9.084726967
Y135: 128 | Z135: 8.402270261
